fUSD/lending_fUSD_20250511
["ID","MTS","AMOUNT","RATE_DAILY","PERIOD"]
[360675968,1746923432589,-300.0,0.00019178,2]
[360675969,1746923432600,-150.0,0.00019178,2]
[360675970,1746923432612,-150.06,0.00019178,2]
[360675971,1746923432623,-300.0,0.00019178,2]
[360675972,1746923432634,-352.66,0.00019178,2]
[360675973,1746923432645,-162.5,0.00019178,2]
[360675974,1746923432656,-150.06,0.00019178,2]
[360675976,1746923432671,-452.36,0.00019178,2]
[360675978,1746923432682,-162.5,0.00019178,2]
[360675980,1746923432694,-352.66,0.00019178,2]
[360675981,1746923432706,-452.36,0.00019178,2]
[360675982,1746923432718,-162.5,0.00019178,2]
[360675984,1746923432728,-352.66,0.00019178,2]
[360675986,1746923432739,-150.06,0.00019178,2]
[360675988,1746923432751,-162.5,0.00019178,2]
[360675989,1746923432763,-150.06,0.00019178,2]
[360675990,1746923432774,-352.66,0.00019178,2]
[360675991,1746923432787,-452.36,0.00019178,2]
[360675992,1746923432799,-150.06,0.00019178,2]
[360675993,1746923432810,-352.66,0.00019178,2]
[360675994,1746923432821,-452.36,0.00019178,2]
[360675995,1746923432833,-320.97,0.00019178,2]
[360675996,1746923432843,-310.99,0.00019178,2]
[360675998,1746923432855,-150.06,0.00019178,2]
[360675999,1746923432866,-150.06,0.00019178,2]
[360676000,1746923432877,-1200.0,0.000192,7]
[360676001,1746923432887,-246.80292199,0.000192,2]
[360676002,1746923432898,-246.80292193,0.000192,2]
[360676003,1746923432909,-246.80292193,0.000192,2]
[360676004,1746923432920,-246.80292193,0.000192,2]
[360676005,1746923432931,-246.80292193,0.000192,2]
[360676006,1746923432941,-246.80292193,0.000192,2]
[360676007,1746923432952,-246.80292193,0.000192,2]
[360676008,1746923432963,-246.80292193,0.000192,2]
[360676009,1746923432974,-246.80292193,0.000192,2]
[360676010,1746923432984,-246.80292193,0.0001921,2]
[360676011,1746923432995,-151.55295619,0.00019222,2]
[360676012,1746923433005,-282.63324312,0.0001923,2]
[360676013,1746923433017,-246.80292193,0.00019245,2]
[360676014,1746923433033,-162.35535246,0.0001926,2]
[360676015,1746923433050,-246.80292193,0.00019279,2]
[360676016,1746923433063,-446.17715144,0.00019288,2]
[360676017,1746923433075,-303.46,0.00019299,2]
[360676018,1746923433086,-302.15,0.00019299,2]
[360676019,1746923433098,-1600.0,0.000193,7]
[360676020,1746923433110,-246.80292193,0.00019314,2]
[360676021,1746923433123,-791.1761,0.00019333,2]
[360676022,1746923433134,-162.35535246,0.00019342,2]
[360676023,1746923433147,-246.80292193,0.00019348,2]
[360676024,1746923433159,-500.0,0.0001938,2]
[360676025,1746923433171,-500.0,0.0001938,2]
[360676026,1746923433183,-515.28009803,0.0001938,2]
[360676027,1746923433194,-500.0,0.0001938,2]
[360676028,1746923433206,-500.0,0.0001938,2]
[360676029,1746923433218,-500.0,0.0001938,2]
[360676030,1746923433230,-500.0,0.0001938,2]
[360676031,1746923433241,-500.0,0.0001938,2]
[360676032,1746923433253,-500.0,0.0001938,2]
[360676033,1746923433265,-500.0,0.0001938,2]
[360676034,1746923433278,-430.24597973,0.0001938,2]
[360676035,1746923433289,-500.0,0.0001938,2]
[360676036,1746923433300,-500.0,0.0001938,2]
[360676037,1746923433310,-500.0,0.0001938,2]
[360676038,1746923433320,-500.0,0.0001938,2]
[360676039,1746923433331,-500.0,0.0001938,2]
[360676040,1746923433340,-500.0,0.0001938,2]
[360676041,1746923433349,-500.0,0.0001938,2]
[360676042,1746923433359,-500.0,0.0001938,2]
[360676043,1746923433369,-500.0,0.0001938,2]
[360676044,1746923433378,-500.0,0.0001938,2]
[360676045,1746923433388,-500.0,0.0001938,2]
[360676046,1746923433397,-281.57786748,0.0001938,2]
[360676047,1746923433406,-500.0,0.0001938,2]
[360676048,1746923433416,-500.0,0.0001938,2]
[360676049,1746923433744,-500.0,0.0001938,2]
[360676050,1746923433761,-500.0,0.0001938,2]
[360676051,1746923433772,-603.36066441,0.0001938,2]
[360676052,1746923433785,-500.0,0.0001938,2]
[360676053,1746923433795,-500.0,0.0001938,2]
[360676054,1746923433804,-500.0,0.0001938,2]
[360676055,1746923433814,-500.0,0.0001938,2]
[360676056,1746923433824,-500.0,0.0001938,2]
[360676057,1746923433834,-500.0,0.0001938,2]
[360676058,1746923433843,-500.0,0.0001938,2]
[360676059,1746923433853,-500.0,0.0001938,2]
[360676060,1746923433863,-500.0,0.0001938,2]
[360676061,1746923433873,-500.0,0.0001938,2]
[360676062,1746923433882,-500.0,0.0001938,2]
[360676063,1746923433892,-500.0,0.0001938,2]
[360676064,1746923433902,-499.99999999,0.0001938,2]
[360676065,1746923433912,-1000.0,0.00019381,2]
[360676066,1746923433922,-246.80292193,0.00019383,2]
[360676067,1746923433932,-302.0,0.00019391,2]
[360676068,1746923433942,-302.39,0.00019391,2]
[360676069,1746923433951,-304.58,0.00019391,2]
[360676070,1746923433961,-305.74,0.00019391,2]
[360676071,1746923433970,-500.0,0.00019397,2]
[360676072,1746923433980,-300.0,0.000194,7]
[360676073,1746923433989,-246.80292193,0.00019417,2]
[360676074,1746923433999,-162.35535246,0.00019425,2]
[360676075,1746923434008,-439.14031752,0.00019432,2]
[360676076,1746923434018,-539.64499286,0.00019432,2]
[360676077,1746923434029,-500.0,0.00019432,2]
[360676078,1746923434038,-500.0,0.00019432,2]
[360676079,1746923434047,-500.0,0.00019432,2]
[360676080,1746923434056,-500.0,0.00019432,2]
[360676081,1746923434066,-500.0,0.00019432,2]
[360676082,1746923434075,-500.0,0.00019432,2]
[360676083,1746923434084,-500.0,0.00019432,2]
[360676084,1746923434093,-500.0,0.00019432,2]
[360676085,1746923434103,-500.0,0.00019432,2]
[360676086,1746923434112,-500.0,0.00019432,2]
[360676087,1746923434121,-500.0,0.00019432,2]
[360676088,1746923434131,-500.0,0.00019432,2]
[360676089,1746923434140,-500.0,0.00019432,2]
[360676090,1746923434151,-500.0,0.00019432,2]
[360676091,1746923434170,-500.0,0.00019432,2]
[360676092,1746923434180,-500.0,0.00019432,2]
[360676093,1746923434190,-500.0,0.00019432,2]
[360676094,1746923434199,-213.08846426,0.00019432,2]
[360676095,1746923434209,-500.0,0.00019432,2]
[360676096,1746923434218,-500.0,0.00019432,2]
[360676097,1746923434227,-450.0,0.00019432,2]
[360676098,1746923434236,-500.0,0.00019432,2]
[360676099,1746923434246,-500.0,0.00019432,2]
[360676100,1746923434260,-15864.65702293,0.00019432,2]
[360676101,1746923434270,-2459.8101,0.00019432,2]
[360676102,1746923434282,-2809.661,0.00019432,2]
[360676103,1746923434292,-8730.0135,0.00019432,2]
[360676104,1746923434301,-4006.0528,0.00019432,2]
[360676105,1746923434311,-1352.0032,0.00019432,2]
[360676106,1746923434320,-807.1883,0.00019432,2]
[360676107,1746923434329,-1000.0,0.00019432,2]
[360676108,1746923434339,-2122.8781,0.00019432,2]
[360676109,1746923434348,-6538.65624612,0.00019433,2]
[360676110,1746923434376,-1290.59515636,0.00019433,2]
[360676111,1746923434388,-15881.47000036,0.00019433,2]
[360676112,1746923434399,-22962.92959716,0.00019433,2]
[360676113,1746923434408,-225.0,0.00019434,2]
[360676114,1746923434417,-246.80292193,0.00019452,2]
[360676115,1746923434427,-150.0,0.00019452,2]
[360676116,1746923434436,-500.0,0.00019479,2]
[360676117,1746923434445,-15864.65702285,0.00019484,2]
[360676118,1746923434454,-246.80292193,0.00019486,2]
[360676119,1746923434464,-300.0,0.000195,7]
[360676120,1746923434473,-162.35535246,0.00019507,2]
[360676121,1746923434483,-2068.575,0.00019515,2]
[360676122,1746923434492,-174.26752391,0.00019518,2]
[360676123,1746923434501,-246.80292193,0.00019521,2]
[360676124,1746923434511,-162.4,0.00019522,2]
[360676125,1746923434520,-853.72762248,0.00019526,2]
[360676126,1746923434600,-614.42237752,0.00019526,2]
[360676127,1746923434610,-393.34816283,0.00019531,2]
[360676128,1746923434620,-400.0,0.00019532,2]
[360676129,1746923434630,-285.06159729,0.00019532,2]
[360676130,1746923434925,-114.93840271,0.00019532,2]
[360676131,1746923434935,-400.0,0.00019532,2]
[360676132,1746923434944,-400.0,0.00019532,2]
[360676133,1746923434955,-162.72538672,0.00019532,2]
[360676134,1746923434964,-536.26129344,0.00019532,2]
[360676135,1746923434974,-400.0,0.00019532,2]
[360676136,1746923434983,-400.0,0.00019532,2]
[360676137,1746923434993,-400.0,0.00019532,2]
[360676138,1746923435002,-400.0,0.00019532,2]
[360676139,1746923435012,-400.0,0.00019532,2]
[360676140,1746923435021,-400.0,0.00019532,2]
[360676141,1746923435035,-400.0,0.00019532,2]
[360676142,1746923435045,-400.0,0.00019532,2]
[360676143,1746923435054,-278.9891969,0.00019532,2]
[360676144,1746923435065,-121.0108031,0.00019532,2]
[360676145,1746923435075,-400.0,0.00019532,2]
[360676146,1746923435084,-400.0,0.00019532,2]
[360676147,1746923435093,-400.0,0.00019532,2]
[360676148,1746923435102,-400.0,0.00019532,2]
[360676149,1746923435112,-400.0,0.00019532,2]
[360676150,1746923435121,-201.70399537,0.00019532,2]
[360676151,1746923435134,-198.29600463,0.00019532,2]
[360676152,1746923435143,-400.0,0.00019532,2]
[360676153,1746923435153,-400.0,0.00019532,2]
[360676154,1746923435163,-400.0,0.00019532,2]
[360676155,1746923435172,-400.0,0.00019532,2]
[360676156,1746923435181,-41.28542889,0.00019532,2]
[360676157,1746923435267,-532.91457111,0.00019532,2]
[360676158,1746923435281,-400.0,0.00019532,2]
[360676159,1746923435290,-400.0,0.00019532,2]
[360676160,1746923435299,-347.9672026,0.00019532,2]
[360676161,1746923435312,-52.0327974,0.00019532,2]
[360676162,1746923435321,-400.0,0.00019532,2]
[360676163,1746923435330,-400.0,0.00019532,2]
[360676164,1746923435339,-400.0,0.00019532,2]
[360676165,1746923435348,-400.0,0.00019532,2]
[360676166,1746923435358,-400.0,0.00019532,2]
[360676167,1746923435368,-400.0,0.00019532,2]
[360676168,1746923435379,-263.25845269,0.00019532,2]
[360676173,1746923438155,-500.0,0.00018904,2]
[360676174,1746923438166,-136.74154731,0.00019532,2]
[360676175,1746923438176,-400.0,0.00019532,2]
[360676176,1746923438186,-61.80841429,0.00019532,2]
[360676177,1746923438197,-338.19158571,0.00019532,2]
[360676178,1746923438207,-400.0,0.00019532,2]
[360676179,1746923438216,-400.0,0.00019532,2]
[360676180,1746923438225,-355.7879322,0.00019532,2]
[360676181,1746923438327,-44.2120678,0.00019532,2]
[360676182,1746923438337,-400.0,0.00019532,2]
[360676183,1746923438347,-583.87822086,0.00019532,2]
[360676184,1746923438359,-54.16177914,0.00019532,2]
[360676185,1746923438369,-222.43902278,0.00019532,2]
[360676186,1746923438380,-177.56097722,0.00019532,2]
[360676187,1746923438390,-400.0,0.00019532,2]
[360676188,1746923438399,-99.38496317,0.00019532,2]
[360676189,1746923438410,-300.61503683,0.00019532,2]
[360676190,1746923438420,-400.0,0.00019532,2]
[360676191,1746923438430,-842.22,0.00019532,2]
[360676192,1746923438440,-560.99,0.00019532,2]
[360676193,1746923438449,-394.82,0.00019532,2]
[360676194,1746923438459,-400.0,0.00019532,2]
[360676195,1746923438468,-400.0,0.00019532,2]
[360676196,1746923438478,-670.21,0.00019532,2]
[360676197,1746923438487,-400.0,0.00019532,2]
[360676199,1746923438497,-400.0,0.00019532,2]
[360676200,1746923438507,-400.0,0.00019532,2]
[360676201,1746923438517,-219.00626502,0.00019532,2]
[360676202,1746923438526,-496.71418219,0.00019532,2]
[360676203,1746923438540,-400.0,0.00019532,2]
[360676204,1746923438550,-400.0,0.00019533,2]
[360676205,1746923438560,-400.0,0.00019533,2]
[360676206,1746923438570,-400.0,0.00019533,2]
[360676207,1746923438579,-400.0,0.00019533,2]
[360676208,1746923438589,-400.96843597,0.00019533,2]
[360676209,1746923438599,-401.91947862,0.00019533,2]
[360676210,1746923438609,-400.15862531,0.00019533,2]
[360676211,1746923438618,-400.0,0.00019533,2]
[360676212,1746923438628,-400.0,0.00019533,2]
[360676213,1746923438637,-401.80892707,0.00019533,2]
[360676215,1746923438647,-400.0,0.00019533,2]
[360676217,1746923438657,-458.74,0.00019533,2]
[360676218,1746923438669,-400.0,0.00019533,2]
[360676219,1746923438679,-400.0,0.00019533,2]
[360676220,1746923438691,-400.0,0.00019533,2]
[360676221,1746923438700,-400.0,0.00019533,2]
[360676222,1746923438710,-467.06,0.00019533,2]
[360676223,1746923438720,-510.4,0.00019533,2]
[360676224,1746923438730,-400.0,0.00019533,2]
[360676225,1746923438740,-400.0,0.00019533,2]
[360676226,1746923438752,-344.03939139,0.00019533,2]
[360676227,1746923438763,-574.09,0.00019533,2]
[360676228,1746923438773,-401.25168508,0.00019533,2]
[360676229,1746923438787,-400.0,0.00019533,2]
[360676230,1746923438797,-400.0,0.00019533,2]
[360676231,1746923438807,-400.0,0.00019533,2]
[360676232,1746923438817,-400.0,0.00019533,2]
[360676233,1746923438826,-400.0,0.00019533,2]
[360676234,1746923438836,-400.0,0.00019533,2]
[360676235,1746923438846,-1032.88,0.00019533,2]
[360676236,1746923438855,-400.0,0.00019533,2]
[360676237,1746923438865,-400.0,0.00019533,2]
[360676238,1746923438875,-400.0,0.00019533,2]
[360676239,1746923438885,-400.0,0.00019533,2]
[360676240,1746923438894,-567.92,0.00019533,2]
[360676241,1746923438903,-400.0,0.00019533,2]
[360676242,1746923438913,-605.66,0.00019533,2]
[360676243,1746923438922,-400.0,0.00019533,2]
[360676244,1746923438932,-400.0,0.00019533,2]
[360676245,1746923438942,-400.0,0.00019533,2]
[360676246,1746923438951,-400.0,0.00019533,2]
[360676247,1746923438961,-400.0,0.00019533,2]
[360676248,1746923438970,-400.0,0.00019533,2]
[360676249,1746923438980,-673.79,0.00019533,2]
[360676250,1746923438990,-400.0,0.00019533,2]
[360676251,1746923438999,-400.0,0.00019533,2]
[360676252,1746923439009,-10980.2,0.00019533,2]
[360676253,1746923439179,-515.77,0.00019533,2]
[360676254,1746923439194,-400.0,0.00019534,2]
[360676255,1746923439203,-400.0,0.00019534,2]
[360676256,1746923439212,-400.0,0.00019534,2]
[360676257,1746923439221,-400.0,0.00019534,2]
[360676258,1746923439231,-400.0,0.00019534,2]
[360676259,1746923439241,-400.0,0.00019534,2]
[360676260,1746923439250,-400.0,0.00019534,2]
[360676261,1746923439259,-400.0,0.00019534,2]
[360676262,1746923439269,-400.0,0.00019534,2]
[360676263,1746923439278,-400.0,0.00019534,2]
[360676264,1746923439291,-400.0,0.00019534,2]
[360676265,1746923439301,-400.0,0.00019534,2]
[360676266,1746923439311,-400.0,0.00019534,2]
[360676267,1746923439321,-400.0,0.00019534,2]
[360676268,1746923439331,-457.66,0.00019534,2]
[360676269,1746923439341,-400.0,0.00019534,2]
[360676270,1746923439350,-400.0,0.00019534,2]
[360676271,1746923439359,-521.65,0.00019534,2]
[360676272,1746923439370,-400.0,0.00019534,2]
[360676273,1746923439379,-400.0,0.00019534,2]
[360676274,1746923439389,-400.0,0.00019534,2]
[360676275,1746923439399,-500.0,0.00019534,2]
[360676276,1746923439408,-400.0,0.00019534,2]
[360676277,1746923439417,-172.26749637,0.00019534,2]
[360676278,1746923439427,-400.0,0.00019534,2]
[360676279,1746923439436,-400.0,0.00019534,2]
[360676280,1746923439446,-400.0,0.00019534,2]
[360676281,1746923439456,-462.92,0.00019534,2]
[360676282,1746923439466,-400.0,0.00019534,2]
[360676283,1746923439476,-400.0,0.00019534,2]
[360676284,1746923439485,-415.89,0.00019534,2]
[360676285,1746923439495,-400.0,0.00019534,2]
[360676286,1746923439504,-400.0,0.00019534,2]
[360676287,1746923439514,-400.0,0.00019534,2]
[360676288,1746923439523,-400.0,0.00019534,2]
[360676289,1746923439536,-400.0,0.00019534,2]
[360676290,1746923439546,-400.0,0.00019534,2]
[360676291,1746923439556,-400.0,0.00019534,2]
[360676292,1746923439566,-400.0,0.00019534,2]
[360676293,1746923439575,-400.0,0.00019534,2]
[360676294,1746923439585,-400.0,0.00019534,2]
[360676295,1746923439596,-400.0,0.00019534,2]
[360676296,1746923439606,-400.0,0.00019534,2]
[360676297,1746923439615,-400.0,0.00019534,2]
[360676298,1746923439625,-564.47,0.00019534,2]
[360676299,1746923439635,-400.0,0.00019534,2]
[360676300,1746923439644,-400.0,0.00019534,2]
[360676301,1746923439654,-1990.660654,0.00019534,2]
[360676302,1746923439669,-400.0,0.00019534,2]
[360676303,1746923439679,-299.23947912,0.00019535,2]
[360676304,1746923439688,-218.13582907,0.00019535,2]
[360676305,1746923439698,-400.0,0.00019535,2]
[360676306,1746923439709,-400.0,0.00019535,2]
[360676307,1746923439719,-400.0,0.00019535,2]
[360676308,1746923439728,-400.0,0.00019535,2]
[360676309,1746923439738,-400.0,0.00019535,2]
[360676310,1746923439748,-400.0,0.00019535,2]
[360676311,1746923439758,-400.0,0.00019535,2]
[360676312,1746923439768,-794.96472729,0.00019536,2]
[360676316,1746923440050,-6672.50776728,0.00019536,2]
[360676317,1746923440061,-701.66400667,0.00019536,2]
[360676366,1746923440772,-211.80940536,0.00019536,2]
[360676367,1746923440788,-4102.17808002,0.00019536,2]
[360676368,1746923441148,-500.0,0.00019479,2]
[360676369,1746923441159,-644.84,0.00019534,2]
[360676370,1746923441169,-3381.53303623,0.00019536,2]
[360676371,1746923441179,-246.80292193,0.00019555,2]
[360676372,1746923441188,-174.2675239,0.00019573,2]
[360676373,1746923441198,-776.93059276,0.00019582,2]
[360676374,1746923441208,-3778.58235427,0.00019588,2]
[360676375,1746923441254,-1250.009208,0.00019588,2]
[360676376,1746923441265,-331.76478047,0.00019588,2]
[360676377,1746923441297,-1070.58000003,0.00019588,2]
[360676378,1746923441315,-941.9297478,0.00019588,2]
[360676379,1746923441327,-432.16,0.00019588,2]
[360676380,1746923441339,-8059.63093228,0.00019588,2]
[360676381,1746923441348,-162.35535246,0.00019589,2]
[360676382,1746923441358,-246.80292193,0.0001959,2]
[360676383,1746923441367,-300.0,0.000196,7]
[360676384,1746923441378,-172.26749633,0.00019607,2]
[360676385,1746923441388,-400.0,0.00019614,2]
[360676386,1746923441397,-400.0,0.00019614,2]
[360676387,1746923441406,-400.0,0.00019614,2]
[360676388,1746923441416,-261.49154142,0.00019614,2]
[360676389,1746923441426,-400.0,0.00019614,2]
[360676390,1746923441436,-400.0,0.00019614,2]
[360676391,1746923441447,-174.20659225,0.00019614,2]
[360676392,1746923441457,-400.0,0.00019614,2]
[360676393,1746923441469,-400.0,0.00019614,2]
[360676394,1746923441482,-400.0,0.00019614,2]
[360676395,1746923441493,-400.0,0.00019614,2]
[360676396,1746923441503,-432.6166513,0.00019614,2]
[360676397,1746923441514,-400.0,0.00019614,2]
[360676398,1746923441524,-400.0,0.00019614,2]
[360676399,1746923441535,-405.71833171,0.00019614,2]
[360676400,1746923441588,-400.0,0.00019614,2]
[360676401,1746923441598,-400.0,0.00019614,2]
[360676402,1746923441607,-500.0,0.00019614,2]
[360676403,1746923441616,-400.0,0.00019614,2]
[360676404,1746923441626,-400.0,0.00019614,2]
[360676405,1746923441635,-549.68,0.00019614,2]
[360676406,1746923441645,-400.0,0.00019614,2]
[360676407,1746923441655,-403.63954104,0.00019614,2]
[360676408,1746923441669,-400.0,0.00019614,2]
[360676409,1746923441678,-400.0,0.00019614,2]
[360676410,1746923441688,-400.0,0.00019614,2]
[360676411,1746923441698,-400.0,0.00019614,2]
[360676412,1746923441708,-530.15136482,0.00019614,2]
[360676413,1746923441718,-400.0,0.00019614,2]
[360676414,1746923441728,-400.0,0.00019614,2]
[360676415,1746923441737,-400.0,0.00019614,2]
[360676416,1746923441750,-400.0,0.00019614,2]
[360676417,1746923441760,-400.0,0.00019614,2]
[360676418,1746923441769,-400.0,0.00019614,2]
[360676419,1746923441779,-400.0,0.00019614,2]
[360676420,1746923441793,-400.0,0.00019614,2]
[360676421,1746923441803,-400.0,0.00019615,2]
[360676422,1746923441812,-400.0,0.00019615,2]
[360676423,1746923441821,-400.0,0.00019615,2]
[360676424,1746923441831,-400.0,0.00019615,2]
[360676425,1746923441841,-400.0,0.00019615,2]
[360676426,1746923441850,-400.0,0.00019615,2]
[360676427,1746923441860,-539.8939855,0.00019615,2]
[360676428,1746923441869,-400.0,0.00019615,2]
[360676429,1746923441878,-400.0,0.00019615,2]
[360676430,1746923441888,-451.22830515,0.00019615,2]
[360676431,1746923441897,-400.0,0.00019615,2]
[360676432,1746923441907,-400.0,0.00019615,2]
[360676433,1746923441917,-400.0,0.00019615,2]
[360676434,1746923441926,-400.0,0.00019615,2]
[360676435,1746923441935,-450.0,0.00019615,2]
[360676436,1746923441945,-400.0,0.00019615,2]
[360676437,1746923441955,-400.0,0.00019615,2]
[360676438,1746923441964,-400.0,0.00019615,2]
[360676439,1746923441974,-451.10767954,0.00019615,2]
[360676440,1746923441983,-400.0,0.00019615,2]
[360676441,1746923441993,-400.0,0.00019615,2]
[360676442,1746923442002,-400.0,0.00019615,2]
[360676443,1746923442011,-400.0,0.00019615,2]
[360676444,1746923442020,-400.0,0.00019615,2]
[360676445,1746923442029,-400.0,0.00019615,2]
[360676446,1746923442043,-400.0,0.00019615,2]
[360676447,1746923442052,-400.0,0.00019615,2]
[360676448,1746923442061,-400.0,0.00019615,2]
[360676449,1746923442071,-400.0,0.00019615,2]
[360676450,1746923442080,-468.61403268,0.00019615,2]
[360676451,1746923442090,-400.0,0.00019615,2]
[360676452,1746923442099,-400.0,0.00019615,2]
[360676453,1746923442109,-400.0,0.00019615,2]
[360676454,1746923442118,-400.0,0.00019615,2]
[360676455,1746923442127,-539.52012943,0.00019615,2]
[360676456,1746923442137,-400.0,0.00019615,2]
[360676457,1746923442146,-400.0,0.00019615,2]
[360676458,1746923442156,-400.0,0.00019615,2]
[360676459,1746923442167,-400.0,0.00019615,2]
[360676460,1746923442177,-400.0,0.00019615,2]
[360676461,1746923442186,-400.0,0.00019615,2]
[360676462,1746923442195,-400.0,0.00019615,2]
[360676463,1746923442204,-400.0,0.00019615,2]
[360676464,1746923442213,-439.82,0.00019615,2]
[360676465,1746923442223,-400.0,0.00019615,2]
[360676466,1746923442232,-400.0,0.00019615,2]
[360676467,1746923442241,-400.0,0.00019615,2]
[360676468,1746923442250,-400.0,0.00019615,2]
[360676469,1746923442259,-477.92,0.00019615,2]
[360676470,1746923442269,-400.0,0.00019615,2]
[360676471,1746923442279,-400.0,0.00019615,2]
[360676472,1746923442291,-400.0,0.00019615,2]
[360676473,1746923442301,-400.0,0.00019615,2]
[360676474,1746923442310,-400.0,0.00019615,2]
[360676475,1746923442320,-400.0,0.00019615,2]
[360676476,1746923442329,-502.6724177,0.00019615,2]
[360676477,1746923442339,-400.0,0.00019615,2]
[360676478,1746923442348,-451.23,0.00019615,2]
[360676479,1746923442357,-400.0,0.00019615,2]
[360676480,1746923442367,-400.0,0.00019615,2]
[360676481,1746923442376,-400.0,0.00019615,2]
[360676482,1746923442385,-400.0,0.00019615,2]
[360676483,1746923442394,-400.0,0.00019615,2]
[360676484,1746923442404,-400.0,0.00019615,2]
[360676485,1746923442414,-400.0,0.00019615,2]
[360676486,1746923442424,-400.0,0.00019615,2]
[360676487,1746923442433,-400.0,0.00019615,2]
[360676488,1746923442443,-400.0,0.00019615,2]
[360676489,1746923442452,-400.0,0.00019615,2]
[360676490,1746923442461,-400.0,0.00019615,2]
[360676491,1746923442470,-439.92,0.00019615,2]
[360676492,1746923442480,-400.0,0.00019615,2]
[360676493,1746923442490,-455.08,0.00019615,2]
[360676494,1746923442500,-400.0,0.00019615,2]
[360676495,1746923442509,-400.0,0.00019615,2]
[360676496,1746923442518,-400.0,0.00019615,2]
[360676497,1746923442528,-400.0,0.00019615,2]
[360676498,1746923442540,-400.0,0.00019615,2]
[360676499,1746923442551,-400.0,0.00019615,2]
[360676500,1746923442560,-400.0,0.00019615,2]
[360676501,1746923442570,-400.0,0.00019615,2]
[360676502,1746923442579,-400.0,0.00019615,2]
[360676503,1746923442588,-400.0,0.00019615,2]
[360676504,1746923442598,-400.0,0.00019615,2]
[360676505,1746923442607,-400.0,0.00019615,2]
[360676506,1746923442616,-539.0,0.00019615,2]
[360676507,1746923442626,-400.0,0.00019615,2]
[360676508,1746923442635,-400.0,0.00019615,2]
[360676509,1746923442644,-202.32961931,0.00019615,2]
[360676510,1746923442654,-400.0,0.00019615,2]
[360676511,1746923442664,-400.0,0.00019615,2]
[360676512,1746923442673,-400.0,0.00019615,2]
[360676513,1746923442685,-831.22,0.00019615,2]
[360676514,1746923442695,-400.0,0.00019615,2]
[360676515,1746923442705,-666.74,0.00019615,2]
[360676516,1746923442714,-400.0,0.00019615,2]
[360676517,1746923442725,-400.0,0.00019615,2]
[360676518,1746923442734,-400.0,0.00019615,2]
[360676519,1746923442744,-400.0,0.00019615,2]
[360676520,1746923442754,-400.0,0.00019615,2]
[360676521,1746923442765,-400.0,0.00019615,2]
[360676522,1746923442774,-400.0,0.00019615,2]
[360676523,1746923442784,-400.0,0.00019615,2]
[360676524,1746923442800,-400.0,0.00019615,2]
[360676525,1746923442810,-560.18,0.00019615,2]
[360676526,1746923442820,-400.0,0.00019615,2]
[360676527,1746923442829,-391.42540669,0.00019615,2]
[360676528,1746923442838,-400.0,0.00019615,2]
[360676529,1746923442848,-400.0,0.00019615,2]
[360676530,1746923442857,-400.0,0.00019615,2]
[360676531,1746923442867,-400.0,0.00019615,2]
[360676532,1746923442877,-630.12,0.00019615,2]